{"text_format":"3","workbook":"xlsx","n_sheets":5,"sheets":["Лист1","Обзор бюджета","Сводный бюджет","Расходы за месяц","Дополнительные данные"],"not_rendered":{"charts":1,"defined_names":7,"pivot_tables":2},"read":"whole","date_system":"1900"}

{"sheet":"Лист1","index":0,"n_rows":12,"n_cols":3,"rows_kept":12,"hidden":true}
["Вычисляемое поле"]
["Порядок вычислений","Поле","Формула"]
[]
["Вычисляемый элемент"]
["Порядок вычислений","Позиция","Формула"]
[]
[]
["Примечание:","Если ячейка обновляется с помощью нескольких формул,"]
[null,"значение устанавливается последней формулой в порядке вычисления."]
[]
[null,"Чтобы изменить порядок вычисления для многократно вычисляемых элементов или полей,"]
[null,"на вкладке \"Параметры\" в группе \"Вычисления\" щелкните \"Поля, элементы и наборы\" и выберите \"Порядок вычислений\"."]

{"sheet":"Обзор бюджета","index":1,"n_rows":16,"n_cols":8,"rows_kept":16,"merged":[[0,1,0,6],[1,1,1,2],[3,1,3,2],[4,1,4,2],[5,1,5,2]]}
[null,"ОБЗОР БЮДЖЕТА",{"$nulls":5}," "]
[null,"Остаток"]
[]
[null,"Запланированный остаток",null,{"$f":"Запланированные_Доходы-Запланированные_Расходы","v":{"v":1585,"d":"1,585 ₽"}},null,"Запланированная сумма минус расходы"]
[null,"Фактический остаток ",null,{"$f":"Фактические_Доходы-Фактические_расходы","v":{"v":1740,"d":"1,740 ₽"}},null,"Фактическая сумма минус расходы"]
[null,"Разница",null,{"$f":"D5-D4","v":{"v":155,"d":"155 ₽"}},null,"Фактическая сумма минус запланированная сумма"]
[]
[null,"Доходы",{"$nulls":3},"Расходы"]
[]
[null,null,"Запланированные","Фактические",null,"Запланированные","Фактические"]
[null,"Доход 1",{"v":6000,"d":"6,000 ₽"},{"v":5800,"d":"5,800 ₽"},null,{"$f":"SUM(Monthly_Expenses_Table[Запланированные затраты])","v":{"v":7915,"d":"7,915 ₽"}},{"$f":"SUM(Monthly_Expenses_Table[Фактические затраты])","v":{"v":7860,"d":"7,860 ₽"}}]
[null,"Доход 2",{"v":1000,"d":"1,000 ₽"},{"v":2300,"d":"2,300 ₽"}]
[null,"Дополнительный доход",{"v":2500,"d":"2,500 ₽"},{"v":1500,"d":"1,500 ₽"}]
[null,"Общий доход",{"$f":"SUM(C11:C13)","v":{"v":9500,"d":"9,500 ₽"}},{"$f":"SUM(D11:D13)","v":{"v":9600,"d":"9,600 ₽"}}]
[]
[null,"Разбивка по фактическим расходам"]

{"sheet":"Сводный бюджет","index":2,"n_rows":45,"n_cols":7,"rows_kept":45,"merged":[[0,1,0,4]]}
[null,"СВОДКА ПО БЮДЖЕТУ",{"$nulls":4}," "]
[]
[null,"Categories","Запланированные затраты ","Фактические затраты ","Разница  "]
[null,"Дети",{"v":140,"d":"140 ₽"},{"v":140,"d":"140 ₽"},{"v":0,"d":"0 ₽"}]
[null,"Внешкольные занятия",{"v":40,"d":"40 ₽"},{"v":40,"d":"40 ₽"},{"v":0,"d":"0 ₽"}]
[null,"Медицина",null,null,{"v":0,"d":"0 ₽"}]
[null,"Учебные принадлежности",null,null,{"v":0,"d":"0 ₽"}]
[null,"Школьное образование",{"v":100,"d":"100 ₽"},{"v":100,"d":"100 ₽"},{"v":0,"d":"0 ₽"}]
[]
[null,"Развлечения",{"v":400,"d":"400 ₽"},{"v":358,"d":"358 ₽"},{"v":42,"d":"42 ₽"}]
[null,"Видео/DVD (покупка)",{"v":20,"d":"20 ₽"},{"v":50,"d":"50 ₽"},{"v":-30,"d":"-30 ₽"}]
[null,"Видео/DVD (прокат)",{"v":30,"d":"30 ₽"},{"v":20,"d":"20 ₽"},{"v":10,"d":"10 ₽"}]
[null,"Кино",{"v":50,"d":"50 ₽"},{"v":28,"d":"28 ₽"},{"v":22,"d":"22 ₽"}]
[null,"Концерты",{"v":50,"d":"50 ₽"},{"v":40,"d":"40 ₽"},{"v":10,"d":"10 ₽"}]
[null,"Музыка (компакт-диски, загрузки и т. д.)",{"v":50,"d":"50 ₽"},{"v":30,"d":"30 ₽"},{"v":20,"d":"20 ₽"}]
[null,"Спортивные мероприятия",{"v":0,"d":"0 ₽"},{"v":40,"d":"40 ₽"},{"v":-40,"d":"-40 ₽"}]
[null,"Театр",{"v":200,"d":"200 ₽"},{"v":150,"d":"150 ₽"},{"v":50,"d":"50 ₽"}]
[]
[null,"Еда",{"v":1100,"d":"1,100 ₽"},{"v":1320,"d":"1,320 ₽"},{"v":-220,"d":"-220 ₽"}]
[]
[null,"Подарки и благотворительность",{"v":100,"d":"100 ₽"},{"v":125,"d":"125 ₽"},{"v":-25,"d":"-25 ₽"}]
[null,"Благотворительный взнос 1",{"v":75,"d":"75 ₽"},{"v":100,"d":"100 ₽"},{"v":-25,"d":"-25 ₽"}]
[null,"Благотворительный взнос 2",{"v":25,"d":"25 ₽"},{"v":25,"d":"25 ₽"},{"v":0,"d":"0 ₽"}]
[null,"Подарок 1",null,null,{"v":0,"d":"0 ₽"}]
[null,"Подарок 2",null,null,{"v":0,"d":"0 ₽"}]
[]
[null,"Жилье",{"v":2830,"d":"2,830 ₽"},{"v":2702,"d":"2,702 ₽"},{"v":-72,"d":"-72 ₽"}]
[]
[null,"Страхование",{"v":900,"d":"900 ₽"},{"v":900,"d":"900 ₽"},{"v":0,"d":"0 ₽"}]
[]
[null,"Кредиты",{"v":200,"d":"200 ₽"},{"v":200,"d":"200 ₽"},{"v":0,"d":"0 ₽"}]
[]
[null,"Предметы личной гигиены",{"v":150,"d":"150 ₽"},{"v":140,"d":"140 ₽"},{"v":10,"d":"10 ₽"}]
[]
[null,"Домашние животные",{"v":170,"d":"170 ₽"},{"v":100,"d":"100 ₽"},{"v":70,"d":"70 ₽"}]
[]
[null,"Налоги",{"v":300,"d":"300 ₽"},{"v":300,"d":"300 ₽"},{"v":0,"d":"0 ₽"}]
[]
[null,"Транспорт",{"v":1425,"d":"1,425 ₽"},{"v":1375,"d":"1,375 ₽"},{"v":50,"d":"50 ₽"}]
[]
[null,"Сбережения",{"v":200,"d":"200 ₽"},{"v":200,"d":"200 ₽"},{"v":0,"d":"0 ₽"}]
[null,"Инвестиционный счет",{"v":200,"d":"200 ₽"},{"v":200,"d":"200 ₽"},{"v":0,"d":"0 ₽"}]
[null,"Пенсионный счет",null,null,{"v":0,"d":"0 ₽"}]
[]
[null,"Общий итог",{"v":7915,"d":"7,915 ₽"},{"v":7860,"d":"7,860 ₽"},{"v":-145,"d":"-145 ₽"}]

{"sheet":"Расходы за месяц","index":3,"n_rows":61,"n_cols":8,"rows_kept":61}
[null,"РАСХОДЫ ЗА МЕСЯЦ",{"$nulls":5}," "]
[null,"Описание","Категория","Запланированные затраты","Фактические затраты","Разница","Обзор фактических затрат"]
[null,"Внешкольные занятия","Дети",{"v":40,"d":"40 ₽"},{"v":40,"d":"40 ₽"},{"$f":"IF(OR(Monthly_Expenses_Table[[#This Row],[Запланированные затраты]]=\"\",Monthly_Expenses_Table[[#This Row],[Фактические затраты]]=\"\"),\"\",Monthly_Expenses_Table[[#This Row],[Запланированные затраты]]-Monthly_Expenses_Table[[#This Row],[Фактические затраты]])","v":{"v":0,"d":"0 ₽"}},{"$f":"Monthly_Expenses_Table[[#This Row],[Фактические затраты]]","v":40}]
[null,"Медицина","Дети",null,null,{"$f":"IF(OR(Monthly_Expenses_Table[[#This Row],[Запланированные затраты]]=\"\",Monthly_Expenses_Table[[#This Row],[Фактические затраты]]=\"\"),\"\",Monthly_Expenses_Table[[#This Row],[Запланированные затраты]]-Monthly_Expenses_Table[[#This Row],[Фактические затраты]])","v":""},{"$f":"Monthly_Expenses_Table[[#This Row],[Фактические затраты]]","v":0}]
[null,"Учебные принадлежности","Дети",null,null,{"$f":"IF(OR(Monthly_Expenses_Table[[#This Row],[Запланированные затраты]]=\"\",Monthly_Expenses_Table[[#This Row],[Фактические затраты]]=\"\"),\"\",Monthly_Expenses_Table[[#This Row],[Запланированные затраты]]-Monthly_Expenses_Table[[#This Row],[Фактические затраты]])","v":""},{"$f":"Monthly_Expenses_Table[[#This Row],[Фактические затраты]]","v":0}]
[null,"Школьное образование","Дети",{"v":100,"d":"100 ₽"},{"v":100,"d":"100 ₽"},{"$f":"IF(OR(Monthly_Expenses_Table[[#This Row],[Запланированные затраты]]=\"\",Monthly_Expenses_Table[[#This Row],[Фактические затраты]]=\"\"),\"\",Monthly_Expenses_Table[[#This Row],[Запланированные затраты]]-Monthly_Expenses_Table[[#This Row],[Фактические затраты]])","v":{"v":0,"d":"0 ₽"}},{"$f":"Monthly_Expenses_Table[[#This Row],[Фактические затраты]]","v":100}]
[null,"Концерты","Развлечения",{"v":50,"d":"50 ₽"},{"v":40,"d":"40 ₽"},{"$f":"IF(OR(Monthly_Expenses_Table[[#This Row],[Запланированные затраты]]=\"\",Monthly_Expenses_Table[[#This Row],[Фактические затраты]]=\"\"),\"\",Monthly_Expenses_Table[[#This Row],[Запланированные затраты]]-Monthly_Expenses_Table[[#This Row],[Фактические затраты]])","v":{"v":10,"d":"10 ₽"}},{"$f":"Monthly_Expenses_Table[[#This Row],[Фактические затраты]]","v":40}]
[null,"Театр","Развлечения",{"v":200,"d":"200 ₽"},{"v":150,"d":"150 ₽"},{"$f":"IF(OR(Monthly_Expenses_Table[[#This Row],[Запланированные затраты]]=\"\",Monthly_Expenses_Table[[#This Row],[Фактические затраты]]=\"\"),\"\",Monthly_Expenses_Table[[#This Row],[Запланированные затраты]]-Monthly_Expenses_Table[[#This Row],[Фактические затраты]])","v":{"v":50,"d":"50 ₽"}},{"$f":"Monthly_Expenses_Table[[#This Row],[Фактические затраты]]","v":150}]
[null,"Кино","Развлечения",{"v":50,"d":"50 ₽"},{"v":28,"d":"28 ₽"},{"$f":"IF(OR(Monthly_Expenses_Table[[#This Row],[Запланированные затраты]]=\"\",Monthly_Expenses_Table[[#This Row],[Фактические затраты]]=\"\"),\"\",Monthly_Expenses_Table[[#This Row],[Запланированные затраты]]-Monthly_Expenses_Table[[#This Row],[Фактические затраты]])","v":{"v":22,"d":"22 ₽"}},{"$f":"Monthly_Expenses_Table[[#This Row],[Фактические затраты]]","v":28}]
[null,"Музыка (компакт-диски, загрузки и т. д.)","Развлечения",{"v":50,"d":"50 ₽"},{"v":30,"d":"30 ₽"},{"$f":"IF(OR(Monthly_Expenses_Table[[#This Row],[Запланированные затраты]]=\"\",Monthly_Expenses_Table[[#This Row],[Фактические затраты]]=\"\"),\"\",Monthly_Expenses_Table[[#This Row],[Запланированные затраты]]-Monthly_Expenses_Table[[#This Row],[Фактические затраты]])","v":{"v":20,"d":"20 ₽"}},{"$f":"Monthly_Expenses_Table[[#This Row],[Фактические затраты]]","v":30}]
[null,"Спортивные мероприятия","Развлечения",{"v":0,"d":"0 ₽"},{"v":40,"d":"40 ₽"},{"$f":"IF(OR(Monthly_Expenses_Table[[#This Row],[Запланированные затраты]]=\"\",Monthly_Expenses_Table[[#This Row],[Фактические затраты]]=\"\"),\"\",Monthly_Expenses_Table[[#This Row],[Запланированные затраты]]-Monthly_Expenses_Table[[#This Row],[Фактические затраты]])","v":{"v":-40,"d":"-40 ₽"}},{"$f":"Monthly_Expenses_Table[[#This Row],[Фактические затраты]]","v":40}]
[null,"Видео/DVD (покупка)","Развлечения",{"v":20,"d":"20 ₽"},{"v":50,"d":"50 ₽"},{"$f":"IF(OR(Monthly_Expenses_Table[[#This Row],[Запланированные затраты]]=\"\",Monthly_Expenses_Table[[#This Row],[Фактические затраты]]=\"\"),\"\",Monthly_Expenses_Table[[#This Row],[Запланированные затраты]]-Monthly_Expenses_Table[[#This Row],[Фактические затраты]])","v":{"v":-30,"d":"-30 ₽"}},{"$f":"Monthly_Expenses_Table[[#This Row],[Фактические затраты]]","v":50}]
[null,"Видео/DVD (прокат)","Развлечения",{"v":30,"d":"30 ₽"},{"v":20,"d":"20 ₽"},{"$f":"IF(OR(Monthly_Expenses_Table[[#This Row],[Запланированные затраты]]=\"\",Monthly_Expenses_Table[[#This Row],[Фактические затраты]]=\"\"),\"\",Monthly_Expenses_Table[[#This Row],[Запланированные затраты]]-Monthly_Expenses_Table[[#This Row],[Фактические затраты]])","v":{"v":10,"d":"10 ₽"}},{"$f":"Monthly_Expenses_Table[[#This Row],[Фактические затраты]]","v":20}]
[null,"Рестораны","Еда",{"v":1000,"d":"1,000 ₽"},{"v":1200,"d":"1,200 ₽"},{"$f":"IF(OR(Monthly_Expenses_Table[[#This Row],[Запланированные затраты]]=\"\",Monthly_Expenses_Table[[#This Row],[Фактические затраты]]=\"\"),\"\",Monthly_Expenses_Table[[#This Row],[Запланированные затраты]]-Monthly_Expenses_Table[[#This Row],[Фактические затраты]])","v":{"v":-200,"d":"-200 ₽"}},{"$f":"Monthly_Expenses_Table[[#This Row],[Фактические затраты]]","v":1200}]
[null,"Продукты","Еда",{"v":100,"d":"100 ₽"},{"v":120,"d":"120 ₽"},{"$f":"IF(OR(Monthly_Expenses_Table[[#This Row],[Запланированные затраты]]=\"\",Monthly_Expenses_Table[[#This Row],[Фактические затраты]]=\"\"),\"\",Monthly_Expenses_Table[[#This Row],[Запланированные затраты]]-Monthly_Expenses_Table[[#This Row],[Фактические затраты]])","v":{"v":-20,"d":"-20 ₽"}},{"$f":"Monthly_Expenses_Table[[#This Row],[Фактические затраты]]","v":120}]
[null,"Благотворительный взнос 1","Подарки и благотворительность",{"v":75,"d":"75 ₽"},{"v":100,"d":"100 ₽"},{"$f":"IF(OR(Monthly_Expenses_Table[[#This Row],[Запланированные затраты]]=\"\",Monthly_Expenses_Table[[#This Row],[Фактические затраты]]=\"\"),\"\",Monthly_Expenses_Table[[#This Row],[Запланированные затраты]]-Monthly_Expenses_Table[[#This Row],[Фактические затраты]])","v":{"v":-25,"d":"-25 ₽"}},{"$f":"Monthly_Expenses_Table[[#This Row],[Фактические затраты]]","v":100}]
[null,"Благотворительный взнос 2","Подарки и благотворительность",{"v":25,"d":"25 ₽"},{"v":25,"d":"25 ₽"},{"$f":"IF(OR(Monthly_Expenses_Table[[#This Row],[Запланированные затраты]]=\"\",Monthly_Expenses_Table[[#This Row],[Фактические затраты]]=\"\"),\"\",Monthly_Expenses_Table[[#This Row],[Запланированные затраты]]-Monthly_Expenses_Table[[#This Row],[Фактические затраты]])","v":{"v":0,"d":"0 ₽"}},{"$f":"Monthly_Expenses_Table[[#This Row],[Фактические затраты]]","v":25}]
[null,"Подарок 1","Подарки и благотворительность",null,null,{"$f":"IF(OR(Monthly_Expenses_Table[[#This Row],[Запланированные затраты]]=\"\",Monthly_Expenses_Table[[#This Row],[Фактические затраты]]=\"\"),\"\",Monthly_Expenses_Table[[#This Row],[Запланированные затраты]]-Monthly_Expenses_Table[[#This Row],[Фактические затраты]])","v":""},{"$f":"Monthly_Expenses_Table[[#This Row],[Фактические затраты]]","v":0}]
[null,"Подарок 2","Подарки и благотворительность",null,null,{"$f":"IF(OR(Monthly_Expenses_Table[[#This Row],[Запланированные затраты]]=\"\",Monthly_Expenses_Table[[#This Row],[Фактические затраты]]=\"\"),\"\",Monthly_Expenses_Table[[#This Row],[Запланированные затраты]]-Monthly_Expenses_Table[[#This Row],[Фактические затраты]])","v":""},{"$f":"Monthly_Expenses_Table[[#This Row],[Фактические затраты]]","v":0}]
[null,"Кабельное или спутниковое ТВ","Жилье",{"v":100,"d":"100 ₽"},{"v":100,"d":"100 ₽"},{"$f":"IF(OR(Monthly_Expenses_Table[[#This Row],[Запланированные затраты]]=\"\",Monthly_Expenses_Table[[#This Row],[Фактические затраты]]=\"\"),\"\",Monthly_Expenses_Table[[#This Row],[Запланированные затраты]]-Monthly_Expenses_Table[[#This Row],[Фактические затраты]])","v":{"v":0,"d":"0 ₽"}},{"$f":"Monthly_Expenses_Table[[#This Row],[Фактические затраты]]","v":100}]
[null,"Электричество","Жилье",{"v":45,"d":"45 ₽"},{"v":50,"d":"50 ₽"},{"$f":"IF(OR(Monthly_Expenses_Table[[#This Row],[Запланированные затраты]]=\"\",Monthly_Expenses_Table[[#This Row],[Фактические затраты]]=\"\"),\"\",Monthly_Expenses_Table[[#This Row],[Запланированные затраты]]-Monthly_Expenses_Table[[#This Row],[Фактические затраты]])","v":{"v":-5,"d":"-5 ₽"}},{"$f":"Monthly_Expenses_Table[[#This Row],[Фактические затраты]]","v":50}]
[null,"Бензин","Жилье",{"v":300,"d":"300 ₽"},{"v":400,"d":"400 ₽"},{"$f":"IF(OR(Monthly_Expenses_Table[[#This Row],[Запланированные затраты]]=\"\",Monthly_Expenses_Table[[#This Row],[Фактические затраты]]=\"\"),\"\",Monthly_Expenses_Table[[#This Row],[Запланированные затраты]]-Monthly_Expenses_Table[[#This Row],[Фактические затраты]])","v":{"v":-100,"d":"-100 ₽"}},{"$f":"Monthly_Expenses_Table[[#This Row],[Фактические затраты]]","v":400}]
[null,"Уборка дома","Жилье",{"v":200,"d":"200 ₽"},null,{"$f":"IF(OR(Monthly_Expenses_Table[[#This Row],[Запланированные затраты]]=\"\",Monthly_Expenses_Table[[#This Row],[Фактические затраты]]=\"\"),\"\",Monthly_Expenses_Table[[#This Row],[Запланированные затраты]]-Monthly_Expenses_Table[[#This Row],[Фактические затраты]])","v":""},{"$f":"Monthly_Expenses_Table[[#This Row],[Фактические затраты]]","v":0}]
[null,"Обслуживание","Жилье",{"v":200,"d":"200 ₽"},{"v":150,"d":"150 ₽"},{"$f":"IF(OR(Monthly_Expenses_Table[[#This Row],[Запланированные затраты]]=\"\",Monthly_Expenses_Table[[#This Row],[Фактические затраты]]=\"\"),\"\",Monthly_Expenses_Table[[#This Row],[Запланированные затраты]]-Monthly_Expenses_Table[[#This Row],[Фактические затраты]])","v":{"v":50,"d":"50 ₽"}},{"$f":"Monthly_Expenses_Table[[#This Row],[Фактические затраты]]","v":150}]
[null,"Ипотека или аренда","Жилье",{"v":1700,"d":"1,700 ₽"},{"v":1700,"d":"1,700 ₽"},{"$f":"IF(OR(Monthly_Expenses_Table[[#This Row],[Запланированные затраты]]=\"\",Monthly_Expenses_Table[[#This Row],[Фактические затраты]]=\"\"),\"\",Monthly_Expenses_Table[[#This Row],[Запланированные затраты]]-Monthly_Expenses_Table[[#This Row],[Фактические затраты]])","v":{"v":0,"d":"0 ₽"}},{"$f":"Monthly_Expenses_Table[[#This Row],[Фактические затраты]]","v":1700}]
[null,"Природный газ","Жилье",null,null,{"$f":"IF(OR(Monthly_Expenses_Table[[#This Row],[Запланированные затраты]]=\"\",Monthly_Expenses_Table[[#This Row],[Фактические затраты]]=\"\"),\"\",Monthly_Expenses_Table[[#This Row],[Запланированные затраты]]-Monthly_Expenses_Table[[#This Row],[Фактические затраты]])","v":""},{"$f":"Monthly_Expenses_Table[[#This Row],[Фактические затраты]]","v":0}]
[null,"Интернет","Жилье",{"v":100,"d":"100 ₽"},{"v":100,"d":"100 ₽"},{"$f":"IF(OR(Monthly_Expenses_Table[[#This Row],[Запланированные затраты]]=\"\",Monthly_Expenses_Table[[#This Row],[Фактические затраты]]=\"\"),\"\",Monthly_Expenses_Table[[#This Row],[Запланированные затраты]]-Monthly_Expenses_Table[[#This Row],[Фактические затраты]])","v":{"v":0,"d":"0 ₽"}},{"$f":"Monthly_Expenses_Table[[#This Row],[Фактические затраты]]","v":100}]
[null,"Мобильный телефон","Жилье",{"v":60,"d":"60 ₽"},{"v":60,"d":"60 ₽"},{"$f":"IF(OR(Monthly_Expenses_Table[[#This Row],[Запланированные затраты]]=\"\",Monthly_Expenses_Table[[#This Row],[Фактические затраты]]=\"\"),\"\",Monthly_Expenses_Table[[#This Row],[Запланированные затраты]]-Monthly_Expenses_Table[[#This Row],[Фактические затраты]])","v":{"v":0,"d":"0 ₽"}},{"$f":"Monthly_Expenses_Table[[#This Row],[Фактические затраты]]","v":60}]
[null,"Домашний телефон","Жилье",{"v":35,"d":"35 ₽"},{"v":39,"d":"39 ₽"},{"$f":"IF(OR(Monthly_Expenses_Table[[#This Row],[Запланированные затраты]]=\"\",Monthly_Expenses_Table[[#This Row],[Фактические затраты]]=\"\"),\"\",Monthly_Expenses_Table[[#This Row],[Запланированные затраты]]-Monthly_Expenses_Table[[#This Row],[Фактические затраты]])","v":{"v":-4,"d":"-4 ₽"}},{"$f":"Monthly_Expenses_Table[[#This Row],[Фактические затраты]]","v":39}]
[null,"Расходные материалы","Жилье",{"v":40,"d":"40 ₽"},{"v":55,"d":"55 ₽"},{"$f":"IF(OR(Monthly_Expenses_Table[[#This Row],[Запланированные затраты]]=\"\",Monthly_Expenses_Table[[#This Row],[Фактические затраты]]=\"\"),\"\",Monthly_Expenses_Table[[#This Row],[Запланированные затраты]]-Monthly_Expenses_Table[[#This Row],[Фактические затраты]])","v":{"v":-15,"d":"-15 ₽"}},{"$f":"Monthly_Expenses_Table[[#This Row],[Фактические затраты]]","v":55}]
[null,"Вывоз и переработка мусора","Жилье",{"v":25,"d":"25 ₽"},{"v":22,"d":"22 ₽"},{"$f":"IF(OR(Monthly_Expenses_Table[[#This Row],[Запланированные затраты]]=\"\",Monthly_Expenses_Table[[#This Row],[Фактические затраты]]=\"\"),\"\",Monthly_Expenses_Table[[#This Row],[Запланированные затраты]]-Monthly_Expenses_Table[[#This Row],[Фактические затраты]])","v":{"v":3,"d":"3 ₽"}},{"$f":"Monthly_Expenses_Table[[#This Row],[Фактические затраты]]","v":22}]
[null,"Водоснабжение и канализация","Жилье",{"v":25,"d":"25 ₽"},{"v":26,"d":"26 ₽"},{"$f":"IF(OR(Monthly_Expenses_Table[[#This Row],[Запланированные затраты]]=\"\",Monthly_Expenses_Table[[#This Row],[Фактические затраты]]=\"\"),\"\",Monthly_Expenses_Table[[#This Row],[Запланированные затраты]]-Monthly_Expenses_Table[[#This Row],[Фактические затраты]])","v":{"v":-1,"d":"-1 ₽"}},{"$f":"Monthly_Expenses_Table[[#This Row],[Фактические затраты]]","v":26}]
[null,"Здоровье","Страхование",{"v":400,"d":"400 ₽"},{"v":400,"d":"400 ₽"},{"$f":"IF(OR(Monthly_Expenses_Table[[#This Row],[Запланированные затраты]]=\"\",Monthly_Expenses_Table[[#This Row],[Фактические затраты]]=\"\"),\"\",Monthly_Expenses_Table[[#This Row],[Запланированные затраты]]-Monthly_Expenses_Table[[#This Row],[Фактические затраты]])","v":{"v":0,"d":"0 ₽"}},{"$f":"Monthly_Expenses_Table[[#This Row],[Фактические затраты]]","v":400}]
[null,"Дом","Страхование",{"v":400,"d":"400 ₽"},{"v":400,"d":"400 ₽"},{"$f":"IF(OR(Monthly_Expenses_Table[[#This Row],[Запланированные затраты]]=\"\",Monthly_Expenses_Table[[#This Row],[Фактические затраты]]=\"\"),\"\",Monthly_Expenses_Table[[#This Row],[Запланированные затраты]]-Monthly_Expenses_Table[[#This Row],[Фактические затраты]])","v":{"v":0,"d":"0 ₽"}},{"$f":"Monthly_Expenses_Table[[#This Row],[Фактические затраты]]","v":400}]
[null,"Жизнь","Страхование",{"v":100,"d":"100 ₽"},{"v":100,"d":"100 ₽"},{"$f":"IF(OR(Monthly_Expenses_Table[[#This Row],[Запланированные затраты]]=\"\",Monthly_Expenses_Table[[#This Row],[Фактические затраты]]=\"\"),\"\",Monthly_Expenses_Table[[#This Row],[Запланированные затраты]]-Monthly_Expenses_Table[[#This Row],[Фактические затраты]])","v":{"v":0,"d":"0 ₽"}},{"$f":"Monthly_Expenses_Table[[#This Row],[Фактические затраты]]","v":100}]
[null,"Кредитная карта 1","Кредиты",{"v":200,"d":"200 ₽"},{"v":200,"d":"200 ₽"},{"$f":"IF(OR(Monthly_Expenses_Table[[#This Row],[Запланированные затраты]]=\"\",Monthly_Expenses_Table[[#This Row],[Фактические затраты]]=\"\"),\"\",Monthly_Expenses_Table[[#This Row],[Запланированные затраты]]-Monthly_Expenses_Table[[#This Row],[Фактические затраты]])","v":{"v":0,"d":"0 ₽"}},{"$f":"Monthly_Expenses_Table[[#This Row],[Фактические затраты]]","v":200}]
[null,"Кредитная карта 2","Кредиты",null,null,{"$f":"IF(OR(Monthly_Expenses_Table[[#This Row],[Запланированные затраты]]=\"\",Monthly_Expenses_Table[[#This Row],[Фактические затраты]]=\"\"),\"\",Monthly_Expenses_Table[[#This Row],[Запланированные затраты]]-Monthly_Expenses_Table[[#This Row],[Фактические затраты]])","v":""},{"$f":"Monthly_Expenses_Table[[#This Row],[Фактические затраты]]","v":0}]
[null,"Кредитная карта 3","Кредиты",null,null,{"$f":"IF(OR(Monthly_Expenses_Table[[#This Row],[Запланированные затраты]]=\"\",Monthly_Expenses_Table[[#This Row],[Фактические затраты]]=\"\"),\"\",Monthly_Expenses_Table[[#This Row],[Запланированные затраты]]-Monthly_Expenses_Table[[#This Row],[Фактические затраты]])","v":""},{"$f":"Monthly_Expenses_Table[[#This Row],[Фактические затраты]]","v":0}]
[null,"Личные обстоятельства","Кредиты",null,null,{"$f":"IF(OR(Monthly_Expenses_Table[[#This Row],[Запланированные затраты]]=\"\",Monthly_Expenses_Table[[#This Row],[Фактические затраты]]=\"\"),\"\",Monthly_Expenses_Table[[#This Row],[Запланированные затраты]]-Monthly_Expenses_Table[[#This Row],[Фактические затраты]])","v":""},{"$f":"Monthly_Expenses_Table[[#This Row],[Фактические затраты]]","v":0}]
[null,"На учебу","Кредиты",null,null,{"$f":"IF(OR(Monthly_Expenses_Table[[#This Row],[Запланированные затраты]]=\"\",Monthly_Expenses_Table[[#This Row],[Фактические затраты]]=\"\"),\"\",Monthly_Expenses_Table[[#This Row],[Запланированные затраты]]-Monthly_Expenses_Table[[#This Row],[Фактические затраты]])","v":""},{"$f":"Monthly_Expenses_Table[[#This Row],[Фактические затраты]]","v":0}]
[null,"Одежда","Предметы личной гигиены",{"v":150,"d":"150 ₽"},{"v":140,"d":"140 ₽"},{"$f":"IF(OR(Monthly_Expenses_Table[[#This Row],[Запланированные затраты]]=\"\",Monthly_Expenses_Table[[#This Row],[Фактические затраты]]=\"\"),\"\",Monthly_Expenses_Table[[#This Row],[Запланированные затраты]]-Monthly_Expenses_Table[[#This Row],[Фактические затраты]])","v":{"v":10,"d":"10 ₽"}},{"$f":"Monthly_Expenses_Table[[#This Row],[Фактические затраты]]","v":140}]
[null,"Химчистка","Предметы личной гигиены",null,null,{"$f":"IF(OR(Monthly_Expenses_Table[[#This Row],[Запланированные затраты]]=\"\",Monthly_Expenses_Table[[#This Row],[Фактические затраты]]=\"\"),\"\",Monthly_Expenses_Table[[#This Row],[Запланированные затраты]]-Monthly_Expenses_Table[[#This Row],[Фактические затраты]])","v":""},{"$f":"Monthly_Expenses_Table[[#This Row],[Фактические затраты]]","v":0}]
[null,"Уход за волосами/ногтями","Предметы личной гигиены",null,null,{"$f":"IF(OR(Monthly_Expenses_Table[[#This Row],[Запланированные затраты]]=\"\",Monthly_Expenses_Table[[#This Row],[Фактические затраты]]=\"\"),\"\",Monthly_Expenses_Table[[#This Row],[Запланированные затраты]]-Monthly_Expenses_Table[[#This Row],[Фактические затраты]])","v":""},{"$f":"Monthly_Expenses_Table[[#This Row],[Фактические затраты]]","v":0}]
[null,"Оздоровительные клубы","Предметы личной гигиены",null,null,{"$f":"IF(OR(Monthly_Expenses_Table[[#This Row],[Запланированные затраты]]=\"\",Monthly_Expenses_Table[[#This Row],[Фактические затраты]]=\"\"),\"\",Monthly_Expenses_Table[[#This Row],[Запланированные затраты]]-Monthly_Expenses_Table[[#This Row],[Фактические затраты]])","v":""},{"$f":"Monthly_Expenses_Table[[#This Row],[Фактические затраты]]","v":0}]
[null,"Медицина","Предметы личной гигиены",null,null,{"$f":"IF(OR(Monthly_Expenses_Table[[#This Row],[Запланированные затраты]]=\"\",Monthly_Expenses_Table[[#This Row],[Фактические затраты]]=\"\"),\"\",Monthly_Expenses_Table[[#This Row],[Запланированные затраты]]-Monthly_Expenses_Table[[#This Row],[Фактические затраты]])","v":""},{"$f":"Monthly_Expenses_Table[[#This Row],[Фактические затраты]]","v":0}]
[null,"Еда","Домашние животные",{"v":150,"d":"150 ₽"},{"v":75,"d":"75 ₽"},{"$f":"IF(OR(Monthly_Expenses_Table[[#This Row],[Запланированные затраты]]=\"\",Monthly_Expenses_Table[[#This Row],[Фактические затраты]]=\"\"),\"\",Monthly_Expenses_Table[[#This Row],[Запланированные затраты]]-Monthly_Expenses_Table[[#This Row],[Фактические затраты]])","v":{"v":75,"d":"75 ₽"}},{"$f":"Monthly_Expenses_Table[[#This Row],[Фактические затраты]]","v":75}]
[null,"Уход","Домашние животные",{"v":20,"d":"20 ₽"},{"v":25,"d":"25 ₽"},{"$f":"IF(OR(Monthly_Expenses_Table[[#This Row],[Запланированные затраты]]=\"\",Monthly_Expenses_Table[[#This Row],[Фактические затраты]]=\"\"),\"\",Monthly_Expenses_Table[[#This Row],[Запланированные затраты]]-Monthly_Expenses_Table[[#This Row],[Фактические затраты]])","v":{"v":-5,"d":"-5 ₽"}},{"$f":"Monthly_Expenses_Table[[#This Row],[Фактические затраты]]","v":25}]
[null,"Медицина","Домашние животные",null,null,{"$f":"IF(OR(Monthly_Expenses_Table[[#This Row],[Запланированные затраты]]=\"\",Monthly_Expenses_Table[[#This Row],[Фактические затраты]]=\"\"),\"\",Monthly_Expenses_Table[[#This Row],[Запланированные затраты]]-Monthly_Expenses_Table[[#This Row],[Фактические затраты]])","v":""},{"$f":"Monthly_Expenses_Table[[#This Row],[Фактические затраты]]","v":0}]
[null,"Игрушки","Домашние животные",null,null,{"$f":"IF(OR(Monthly_Expenses_Table[[#This Row],[Запланированные затраты]]=\"\",Monthly_Expenses_Table[[#This Row],[Фактические затраты]]=\"\"),\"\",Monthly_Expenses_Table[[#This Row],[Запланированные затраты]]-Monthly_Expenses_Table[[#This Row],[Фактические затраты]])","v":""},{"$f":"Monthly_Expenses_Table[[#This Row],[Фактические затраты]]","v":0}]
[null,"Инвестиционный счет","Сбережения",{"v":200,"d":"200 ₽"},{"v":200,"d":"200 ₽"},{"$f":"IF(OR(Monthly_Expenses_Table[[#This Row],[Запланированные затраты]]=\"\",Monthly_Expenses_Table[[#This Row],[Фактические затраты]]=\"\"),\"\",Monthly_Expenses_Table[[#This Row],[Запланированные затраты]]-Monthly_Expenses_Table[[#This Row],[Фактические затраты]])","v":{"v":0,"d":"0 ₽"}},{"$f":"Monthly_Expenses_Table[[#This Row],[Фактические затраты]]","v":200}]
[null,"Пенсионный счет","Сбережения",null,null,{"$f":"IF(OR(Monthly_Expenses_Table[[#This Row],[Запланированные затраты]]=\"\",Monthly_Expenses_Table[[#This Row],[Фактические затраты]]=\"\"),\"\",Monthly_Expenses_Table[[#This Row],[Запланированные затраты]]-Monthly_Expenses_Table[[#This Row],[Фактические затраты]])","v":""},{"$f":"Monthly_Expenses_Table[[#This Row],[Фактические затраты]]","v":0}]
[null,"Федеральные","Налоги",{"v":300,"d":"300 ₽"},{"v":300,"d":"300 ₽"},{"$f":"IF(OR(Monthly_Expenses_Table[[#This Row],[Запланированные затраты]]=\"\",Monthly_Expenses_Table[[#This Row],[Фактические затраты]]=\"\"),\"\",Monthly_Expenses_Table[[#This Row],[Запланированные затраты]]-Monthly_Expenses_Table[[#This Row],[Фактические затраты]])","v":{"v":0,"d":"0 ₽"}},{"$f":"Monthly_Expenses_Table[[#This Row],[Фактические затраты]]","v":300}]
[null,"Местные","Налоги",null,null,{"$f":"IF(OR(Monthly_Expenses_Table[[#This Row],[Запланированные затраты]]=\"\",Monthly_Expenses_Table[[#This Row],[Фактические затраты]]=\"\"),\"\",Monthly_Expenses_Table[[#This Row],[Запланированные затраты]]-Monthly_Expenses_Table[[#This Row],[Фактические затраты]])","v":""},{"$f":"Monthly_Expenses_Table[[#This Row],[Фактические затраты]]","v":0}]
[null,"Региональные","Налоги",null,null,{"$f":"IF(OR(Monthly_Expenses_Table[[#This Row],[Запланированные затраты]]=\"\",Monthly_Expenses_Table[[#This Row],[Фактические затраты]]=\"\"),\"\",Monthly_Expenses_Table[[#This Row],[Запланированные затраты]]-Monthly_Expenses_Table[[#This Row],[Фактические затраты]])","v":""},{"$f":"Monthly_Expenses_Table[[#This Row],[Фактические затраты]]","v":0}]
[null,"Автобус или совместные поездки","Транспорт",{"v":100,"d":"100 ₽"},{"v":150,"d":"150 ₽"},{"$f":"IF(OR(Monthly_Expenses_Table[[#This Row],[Запланированные затраты]]=\"\",Monthly_Expenses_Table[[#This Row],[Фактические затраты]]=\"\"),\"\",Monthly_Expenses_Table[[#This Row],[Запланированные затраты]]-Monthly_Expenses_Table[[#This Row],[Фактические затраты]])","v":{"v":-50,"d":"-50 ₽"}},{"$f":"Monthly_Expenses_Table[[#This Row],[Фактические затраты]]","v":150}]
[null,"Топливо","Транспорт",{"v":450,"d":"450 ₽"},{"v":400,"d":"400 ₽"},{"$f":"IF(OR(Monthly_Expenses_Table[[#This Row],[Запланированные затраты]]=\"\",Monthly_Expenses_Table[[#This Row],[Фактические затраты]]=\"\"),\"\",Monthly_Expenses_Table[[#This Row],[Запланированные затраты]]-Monthly_Expenses_Table[[#This Row],[Фактические затраты]])","v":{"v":50,"d":"50 ₽"}},{"$f":"Monthly_Expenses_Table[[#This Row],[Фактические затраты]]","v":400}]
[null,"Страхование","Транспорт",{"v":300,"d":"300 ₽"},{"v":300,"d":"300 ₽"},{"$f":"IF(OR(Monthly_Expenses_Table[[#This Row],[Запланированные затраты]]=\"\",Monthly_Expenses_Table[[#This Row],[Фактические затраты]]=\"\"),\"\",Monthly_Expenses_Table[[#This Row],[Запланированные затраты]]-Monthly_Expenses_Table[[#This Row],[Фактические затраты]])","v":{"v":0,"d":"0 ₽"}},{"$f":"Monthly_Expenses_Table[[#This Row],[Фактические затраты]]","v":300}]
[null,"Лицензирование ","Транспорт",{"v":25,"d":"25 ₽"},{"v":25,"d":"25 ₽"},{"$f":"IF(OR(Monthly_Expenses_Table[[#This Row],[Запланированные затраты]]=\"\",Monthly_Expenses_Table[[#This Row],[Фактические затраты]]=\"\"),\"\",Monthly_Expenses_Table[[#This Row],[Запланированные затраты]]-Monthly_Expenses_Table[[#This Row],[Фактические затраты]])","v":{"v":0,"d":"0 ₽"}},{"$f":"Monthly_Expenses_Table[[#This Row],[Фактические затраты]]","v":25}]
[null,"Обслуживание","Транспорт",{"v":100,"d":"100 ₽"},{"v":50,"d":"50 ₽"},{"$f":"IF(OR(Monthly_Expenses_Table[[#This Row],[Запланированные затраты]]=\"\",Monthly_Expenses_Table[[#This Row],[Фактические затраты]]=\"\"),\"\",Monthly_Expenses_Table[[#This Row],[Запланированные затраты]]-Monthly_Expenses_Table[[#This Row],[Фактические затраты]])","v":{"v":50,"d":"50 ₽"}},{"$f":"Monthly_Expenses_Table[[#This Row],[Фактические затраты]]","v":50}]
[null,"Плата за парковку","Транспорт",null,null,{"$f":"IF(OR(Monthly_Expenses_Table[[#This Row],[Запланированные затраты]]=\"\",Monthly_Expenses_Table[[#This Row],[Фактические затраты]]=\"\"),\"\",Monthly_Expenses_Table[[#This Row],[Запланированные затраты]]-Monthly_Expenses_Table[[#This Row],[Фактические затраты]])","v":""},{"$f":"Monthly_Expenses_Table[[#This Row],[Фактические затраты]]","v":0}]
[null,"Плата за автомобиль","Транспорт",{"v":450,"d":"450 ₽"},{"v":450,"d":"450 ₽"},{"$f":"IF(OR(Monthly_Expenses_Table[[#This Row],[Запланированные затраты]]=\"\",Monthly_Expenses_Table[[#This Row],[Фактические затраты]]=\"\"),\"\",Monthly_Expenses_Table[[#This Row],[Запланированные затраты]]-Monthly_Expenses_Table[[#This Row],[Фактические затраты]])","v":{"v":0,"d":"0 ₽"}},{"$f":"Monthly_Expenses_Table[[#This Row],[Фактические затраты]]","v":450}]

{"sheet":"Дополнительные данные","index":4,"n_rows":17,"n_cols":9,"rows_kept":17}
[null,"ДОПОЛНИТЕЛЬНЫЕ ДАННЫЕ",{"$nulls":3}," "]
[null,"Сводная таблица для диаграммы бюджета",null,null,"Список категорий"]
[]
[null,"Категория","Затраты ",null,"Чтобы добавить категорию, введите ниже",{"$nulls":3},"`"]
[null,"Домашние животные",{"v":100,"d":"100 ₽"},null,"Дети"]
[null,"Подарки и благотворительность",{"v":125,"d":"125 ₽"},null,"Развлечения"]
[null,"Дети",{"v":140,"d":"140 ₽"},null,"Еда"]
[null,"Предметы личной гигиены",{"v":140,"d":"140 ₽"},null,"Подарки и благотворительность"]
[null,"Сбережения",{"v":200,"d":"200 ₽"},null,"Жилье"]
[null,"Кредиты",{"v":200,"d":"200 ₽"},null,"Страхование"]
[null,"Налоги",{"v":300,"d":"300 ₽"},null,"Кредиты"]
[null,"Развлечения",{"v":358,"d":"358 ₽"},null,"Предметы личной гигиены"]
[null,"Страхование",{"v":900,"d":"900 ₽"},null,"Домашние животные"]
[null,"Еда",{"v":1320,"d":"1,320 ₽"},null,"Сбережения"]
[null,"Транспорт",{"v":1375,"d":"1,375 ₽"},null,"Налоги"]
[null,"Жилье",{"v":2702,"d":"2,702 ₽"},null,"Транспорт"]
[null,"Общий итог",{"v":7860,"d":"7,860 ₽"}]